[Event "*** MasterClass Titled Tuesday Blitz"]
[Site "Chess.com"]
[Date "2017.11.07"]
[Round "2"]
[White "igorkovalenko"]
[Black "platy3"]
[Result "1-0"]
[WhiteElo "2792"]
[BlackElo "2542"]
[TimeControl "180+2"]
[EndTime "14:32:27 PST"]
[Termination "igorkovalenko won by resignation"]

1. e4 {[%clk 0:03:01.9]} 1... c5 {[%clk 0:03:00.6]} 2. Nf3 {[%clk 0:03:03]} 2...
Nc6 {[%clk 0:03:01.9]} 3. d4 {[%clk 0:03:03.3]} 3... cxd4 {[%clk 0:03:03.2]} 4.
Nxd4 {[%clk 0:03:05.2]} 4... Qb6 {[%clk 0:03:04.7]} 5. Nb3 {[%clk 0:03:06]} 5...
Nf6 {[%clk 0:03:06.2]} 6. c3 {[%clk 0:03:07]} 6... Nxe4 {[%clk 0:03:06]} 7. Be3
{[%clk 0:03:08]} 7... Qc7 {[%clk 0:03:07]} 8. Bd3 {[%clk 0:03:08.8]} 8... Nf6
{[%clk 0:03:08.3]} 9. N1d2 {[%clk 0:03:09]} 9... g6 {[%clk 0:03:09.2]} 10. h3
{[%clk 0:03:06.7]} 10... Bg7 {[%clk 0:03:10.3]} 11. Qe2 {[%clk 0:03:08]} 11...
O-O {[%clk 0:03:11.3]} 12. Nf3 {[%clk 0:02:59.6]} 12... e5 {[%clk 0:03:08.7]}
13. Bc2 {[%clk 0:02:54]} 13... d5 {[%clk 0:03:03.4]} 14. O-O {[%clk 0:02:54.6]}
14... b6 {[%clk 0:03:02.9]} 15. Rad1 {[%clk 0:02:55.2]} 15... Bb7 {[%clk
0:03:02.9]} 16. Rfe1 {[%clk 0:02:56.3]} 16... Rad8 {[%clk 0:03:03.1]} 17. Bg5
{[%clk 0:02:56.2]} 17... Rfe8 {[%clk 0:03:03.5]} 18. Bh4 {[%clk 0:02:54.5]}
18... Rd7 {[%clk 0:02:47.2]} 19. Bg3 {[%clk 0:02:39.2]} 19... Rde7 {[%clk
0:02:44.1]} 20. Qb5 {[%clk 0:02:31.4]} 20... a6 {[%clk 0:02:39.8]} 21. Qa4
{[%clk 0:02:32.8]} 21... Qc8 {[%clk 0:02:26.1]} 22. Bh4 {[%clk 0:02:22.5]} 22...
e4 {[%clk 0:02:20.8]} 23. Nfd4 {[%clk 0:02:22.1]} 23... Ne5 {[%clk 0:02:21.6]}
24. Nd2 {[%clk 0:02:18.6]} 24... h6 {[%clk 0:02:13.7]} 25. Qb3 {[%clk
0:02:16.8]} 25... Qc5 {[%clk 0:02:04.2]} 26. Nf1 {[%clk 0:02:08]} 26... Nc4
{[%clk 0:01:59]} 27. Ne3 {[%clk 0:02:09.2]} 27... Nxe3 {[%clk 0:01:57.8]} 28.
fxe3 {[%clk 0:02:07.4]} 28... Rc7 {[%clk 0:01:50.4]} 29. Re2 {[%clk 0:02:02]}
29... Nd7 {[%clk 0:01:47.8]} 30. Bg3 {[%clk 0:01:59.9]} 30... Be5 {[%clk
0:01:47.6]} 31. Bxe5 {[%clk 0:02:00.2]} 31... Nxe5 {[%clk 0:01:48.6]} 32. Rf2
{[%clk 0:01:56.8]} 32... Kg7 {[%clk 0:01:44.6]} 33. a3 {[%clk 0:01:49.9]} 33...
b5 {[%clk 0:01:42.3]} 34. Qa2 {[%clk 0:01:47.3]} 34... Bc8 {[%clk 0:01:40.2]}
35. Bb3 {[%clk 0:01:32.2]} 35... Rd8 {[%clk 0:01:33.6]} 36. Rdf1 {[%clk
0:01:31.3]} 36... Rd6 {[%clk 0:01:23.6]} 37. Bd1 {[%clk 0:01:26]} 37... Nd3
{[%clk 0:01:22.6]} 38. Rd2 {[%clk 0:01:26.8]} 38... Re7 {[%clk 0:01:12.8]} 39.
Be2 {[%clk 0:01:27.6]} 39... Ne5 {[%clk 0:01:14.2]} 40. Qb1 {[%clk 0:01:22.1]}
40... Qb6 {[%clk 0:01:13.8]} 41. Qe1 {[%clk 0:01:23]} 41... Rf6 {[%clk
0:01:13.2]} 42. Rxf6 {[%clk 0:01:23.2]} 42... Qxf6 {[%clk 0:01:13.5]} 43. Nc2
{[%clk 0:01:19.3]} 43... Qg5 {[%clk 0:01:09.2]} 44. Kh1 {[%clk 0:01:15.5]} 44...
Be6 {[%clk 0:01:08.9]} 45. Qf2 {[%clk 0:01:14.4]} 45... f5 {[%clk 0:01:09.3]}
46. Nb4 {[%clk 0:01:07.7]} 46... a5 {[%clk 0:01:05.6]} 47. Nxd5 {[%clk
0:01:08.9]} 47... Rd7 {[%clk 0:00:32.7]} 48. Nf4 {[%clk 0:01:08.7]} 48... Qe7
{[%clk 0:00:33.9]} 49. Rd4 {[%clk 0:01:05.9]} 49... Bc4 {[%clk 0:00:31.9]} 50.
Bxc4 {[%clk 0:00:58.7]} 50... bxc4 {[%clk 0:00:31.7]} 51. Qg3 {[%clk 0:00:58]}
51... g5 {[%clk 0:00:28]} 52. Ne2 {[%clk 0:00:37.1]} 52... Rxd4 {[%clk
0:00:29.1]} 53. Nxd4 {[%clk 0:00:38.6]} 53... Qf6 {[%clk 0:00:30.7]} 54. Qe1
{[%clk 0:00:19.5]} 54... Kg6 {[%clk 0:00:32]} 55. Qb1 {[%clk 0:00:19.2]} 55...
Nd3 {[%clk 0:00:32.6]} 56. b3 {[%clk 0:00:20.2]} 56... f4 {[%clk 0:00:27.2]} 57.
exf4 {[%clk 0:00:20.4]} 57... Qxf4 {[%clk 0:00:23.8]} 58. bxc4 {[%clk
0:00:20.9]} 58... Qg3 {[%clk 0:00:04.7]} 59. Qb6+ {[%clk 0:00:21.3]} 59... Kh7
{[%clk 0:00:03.7]} 60. Qxh6+ {[%clk 0:00:22]} 60... Kxh6 {[%clk 0:00:04.8]} 61.
Nf5+ {[%clk 0:00:23.2]} 61... Kg6 {[%clk 0:00:06.1]} 62. Nxg3 {[%clk 0:00:25.1]}
62... e3 {[%clk 0:00:06.5]} 63. Kg1 {[%clk 0:00:26.6]} 63... Kf6 {[%clk
0:00:05.5]} 64. Kf1 {[%clk 0:00:27.6]} 64... Nb2 {[%clk 0:00:04.4]} 65. c5
{[%clk 0:00:27.6]} 65... a4 {[%clk 0:00:05.6]} 66. Ke2 {[%clk 0:00:27.8]} 66...
Nc4 {[%clk 0:00:06.5]} 67. c6 {[%clk 0:00:29.4]} 67... Ke6 {[%clk 0:00:06.8]}
68. Ne4 {[%clk 0:00:30.6]} 68... Kd5 {[%clk 0:00:02.7]} 69. c7 {[%clk
0:00:31.3]} 69... Nb6 {[%clk 0:00:03.7]} 70. Nxg5 {[%clk 0:00:32.6]} 70... Kc6
{[%clk 0:00:05.2]} 71. Kxe3 {[%clk 0:00:33.8]} 71... Kxc7 {[%clk 0:00:06.3]} 72.
Kd4 {[%clk 0:00:34.8]} 72... Kd6 {[%clk 0:00:07.5]} 73. c4 {[%clk 0:00:36.2]}
73... Nd7 {[%clk 0:00:09]} 74. Ne4+ {[%clk 0:00:37.5]} 74... Kc6 {[%clk
0:00:10.6]} 75. g4 {[%clk 0:00:38.5]} 75... Nf8 {[%clk 0:00:10.4]} 76. h4 {[%clk
0:00:39.4]} 76... Ne6+ {[%clk 0:00:11.8]} 77. Ke5 {[%clk 0:00:41]} 1-0

[Event "*** MasterClass Titled Tuesday Blitz"]
[Site "Chess.com"]
[Date "2017.11.07"]
[Round "2"]
[White "popov_m"]
[Black "MITerryble"]
[Result "1/2-1/2"]
[WhiteElo "2484"]
[BlackElo "2602"]
[TimeControl "180+2"]
[EndTime "14:32:30 PST"]
[Termination "Game drawn - insufficient material"]

1. d4 {[%clk 0:03:01.9]} 1... e6 {[%clk 0:03:01]} 2. Nf3 {[%clk 0:03:01.7]} 2...
Nf6 {[%clk 0:03:01.8]} 3. c4 {[%clk 0:03:02.3]} 3... Bb4+ {[%clk 0:03:02]} 4.
Bd2 {[%clk 0:03:01.8]} 4... c5 {[%clk 0:03:01.9]} 5. g3 {[%clk 0:02:58.6]} 5...
Qb6 {[%clk 0:03:02.4]} 6. a3 {[%clk 0:02:16.6]} 6... Bxd2+ {[%clk 0:03:01.2]} 7.
Qxd2 {[%clk 0:02:18.5]} 7... Ne4 {[%clk 0:02:55.7]} 8. Qc2 {[%clk 0:02:18.7]}
8... f5 {[%clk 0:02:34.8]} 9. Nbd2 {[%clk 0:02:07.8]} 9... cxd4 {[%clk
0:02:09.2]} 10. Nxe4 {[%clk 0:02:05.3]} 10... fxe4 {[%clk 0:02:11.1]} 11. Qxe4
{[%clk 0:02:05.8]} 11... Qxb2 {[%clk 0:02:11.9]} 12. Qxd4 {[%clk 0:02:00.2]}
12... Qxd4 {[%clk 0:02:09.6]} 13. Nxd4 {[%clk 0:02:02.1]} 13... a6 {[%clk
0:02:10.8]} 14. Bg2 {[%clk 0:01:58.5]} 14... Nc6 {[%clk 0:02:11.9]} 15. e3
{[%clk 0:01:44.7]} 15... Ne5 {[%clk 0:02:08.4]} 16. O-O {[%clk 0:01:35.8]} 16...
Nxc4 {[%clk 0:02:02.6]} 17. Rfc1 {[%clk 0:01:33.8]} 17... Na5 {[%clk 0:01:48.6]}
18. Rab1 {[%clk 0:01:18]} 18... Ke7 {[%clk 0:01:40.6]} 19. Rc7 {[%clk
0:00:56.8]} 19... Kd6 {[%clk 0:01:24.6]} 20. Rc3 {[%clk 0:00:50]} 20... Nc6
{[%clk 0:01:24.4]} 21. Nb3 {[%clk 0:00:33.9]} 21... b6 {[%clk 0:00:47.1]} 22.
Rd1+ {[%clk 0:00:26.2]} 22... Kc7 {[%clk 0:00:47.6]} 23. Nd4 {[%clk 0:00:25.5]}
23... Bb7 {[%clk 0:00:48]} 24. Nxc6 {[%clk 0:00:24]} 24... dxc6 {[%clk
0:00:42.2]} 25. Bxc6 {[%clk 0:00:24.3]} 25... Bxc6 {[%clk 0:00:43.1]} 26. Rdc1
{[%clk 0:00:25.8]} 26... Rac8 {[%clk 0:00:44.6]} 27. Rxc6+ {[%clk 0:00:27.6]}
27... Kb7 {[%clk 0:00:46.1]} 28. Rxc8 {[%clk 0:00:20.7]} 28... Rxc8 {[%clk
0:00:48]} 29. Rd1 {[%clk 0:00:22.3]} 29... Rc3 {[%clk 0:00:39.3]} 30. a4 {[%clk
0:00:17.3]} 30... Kc7 {[%clk 0:00:38.4]} 31. Rd4 {[%clk 0:00:16.8]} 31... a5
{[%clk 0:00:25.2]} 32. Rh4 {[%clk 0:00:16.1]} 32... h6 {[%clk 0:00:25.8]} 33.
Rg4 {[%clk 0:00:16.9]} 33... g5 {[%clk 0:00:26.7]} 34. h4 {[%clk 0:00:18.1]}
34... Rc5 {[%clk 0:00:27.3]} 35. hxg5 {[%clk 0:00:19.1]} 35... Rxg5 {[%clk
0:00:19.9]} 36. Rh4 {[%clk 0:00:19.7]} 36... h5 {[%clk 0:00:21]} 37. Kg2 {[%clk
0:00:19.9]} 37... b5 {[%clk 0:00:20.9]} 38. axb5 {[%clk 0:00:20.2]} 38... Rxb5
{[%clk 0:00:22.8]} 39. Rc4+ {[%clk 0:00:13.6]} 39... Kd6 {[%clk 0:00:22]} 40.
Kh3 {[%clk 0:00:14.6]} 40... Rc5 {[%clk 0:00:22.6]} 41. Ra4 {[%clk 0:00:15.3]}
41... Kc6 {[%clk 0:00:23.5]} 42. Kh4 {[%clk 0:00:16.7]} 42... Kb5 {[%clk
0:00:24.6]} 43. Ra1 {[%clk 0:00:18.2]} 43... a4 {[%clk 0:00:25.6]} 44. Rb1+
{[%clk 0:00:19.1]} 44... Kc4 {[%clk 0:00:22]} 45. Rc1+ {[%clk 0:00:09.6]} 45...
Kb4 {[%clk 0:00:18.3]} 46. Rb1+ {[%clk 0:00:10.9]} 46... Ka5 {[%clk 0:00:19.4]}
47. Ra1 {[%clk 0:00:11]} 47... Re5 {[%clk 0:00:17.6]} 48. e4 {[%clk 0:00:08.1]}
48... Kb4 {[%clk 0:00:14.8]} 49. f4 {[%clk 0:00:08.8]} 49... Rxe4 {[%clk
0:00:14.6]} 50. Kxh5 {[%clk 0:00:10.3]} 50... a3 {[%clk 0:00:16.1]} 51. Kg5
{[%clk 0:00:08.2]} 51... Kb3 {[%clk 0:00:14.2]} 52. f5 {[%clk 0:00:09.5]} 52...
exf5 {[%clk 0:00:12.7]} 53. Kxf5 {[%clk 0:00:11.4]} 53... Re2 {[%clk 0:00:10.3]}
54. g4 {[%clk 0:00:12.1]} 54... Rf2+ {[%clk 0:00:11.7]} 55. Kg6 {[%clk
0:00:12.8]} 55... Ra2 {[%clk 0:00:11.1]} 56. Rg1 {[%clk 0:00:07.4]} 56... Rb2
{[%clk 0:00:08.7]} 57. g5 {[%clk 0:00:08]} 57... a2 {[%clk 0:00:09.9]} 58. Ra1
{[%clk 0:00:08.1]} 58... Rb1 {[%clk 0:00:06.9]} 59. Rxa2 {[%clk 0:00:09.3]}
59... Kxa2 {[%clk 0:00:08.8]} 60. Kf6 {[%clk 0:00:10.7]} 60... Rf1+ {[%clk
0:00:09.7]} 61. Kg7 {[%clk 0:00:11.7]} 61... Kb3 {[%clk 0:00:10]} 62. g6 {[%clk
0:00:13.2]} 62... Kc4 {[%clk 0:00:11.9]} 63. Kh7 {[%clk 0:00:13.5]} 63... Rh1+
{[%clk 0:00:12.6]} 64. Kg8 {[%clk 0:00:14.8]} 64... Kd5 {[%clk 0:00:13.7]} 65.
g7 {[%clk 0:00:15.3]} 65... Ke6 {[%clk 0:00:14.7]} 66. Kf8 {[%clk 0:00:16]}
66... Rf1+ {[%clk 0:00:11.3]} 67. Ke8 {[%clk 0:00:16.5]} 67... Rg1 {[%clk
0:00:09.1]} 68. Kf8 {[%clk 0:00:17.7]} 68... Rf1+ {[%clk 0:00:09.5]} 69. Ke8
{[%clk 0:00:18.3]} 69... Rg1 {[%clk 0:00:06.3]} 70. Kf8 {[%clk 0:00:19.3]} 70...
Kf6 {[%clk 0:00:07.2]} 71. g8=Q {[%clk 0:00:20]} 71... Rxg8+ {[%clk 0:00:08]}
72. Kxg8 {[%clk 0:00:21.9]} 1/2-1/2

[Event "*** MasterClass Titled Tuesday Blitz"]
[Site "Chess.com"]
[Date "2017.11.07"]
[Round "2"]
[White "pandamaster3000"]
[Black "twitchTriniCupid"]
[Result "1-0"]
[WhiteElo "2278"]
[BlackElo "2084"]
[TimeControl "180+2"]
[EndTime "14:32:36 PST"]
[Termination "pandamaster3000 won by checkmate"]

1. e4 {[%clk 0:03:01.9]} 1... c6 {[%clk 0:03:00.1]} 2. d4 {[%clk 0:03:02.4]}
2... d5 {[%clk 0:03:02]} 3. exd5 {[%clk 0:03:04.3]} 3... cxd5 {[%clk 0:03:03.3]}
4. Bd3 {[%clk 0:03:05]} 4... Nf6 {[%clk 0:03:05.2]} 5. c3 {[%clk 0:03:06.2]}
5... Nc6 {[%clk 0:03:06.7]} 6. Bf4 {[%clk 0:03:07.6]} 6... Bg4 {[%clk
0:03:07.5]} 7. Qb3 {[%clk 0:03:08.8]} 7... Qc8 {[%clk 0:03:08.9]} 8. Nd2 {[%clk
0:03:09.6]} 8... e6 {[%clk 0:03:10.3]} 9. Ngf3 {[%clk 0:03:11]} 9... Be7 {[%clk
0:03:11.8]} 10. O-O {[%clk 0:03:11]} 10... O-O {[%clk 0:03:12.9]} 11. Rfe1
{[%clk 0:03:11.9]} 11... Bh5 {[%clk 0:03:14.1]} 12. Ne5 {[%clk 0:03:03]} 12...
Nxe5 {[%clk 0:03:13.1]} 13. Bxe5 {[%clk 0:02:59.8]} 13... Nd7 {[%clk 0:03:11.6]}
14. Bg3 {[%clk 0:02:59.8]} 14... a6 {[%clk 0:03:07.2]} 15. Qc2 {[%clk
0:03:00.8]} 15... Bg6 {[%clk 0:03:07.9]} 16. a4 {[%clk 0:03:00.7]} 16... Nb6
{[%clk 0:03:04.6]} 17. a5 {[%clk 0:02:55.6]} 17... Nc4 {[%clk 0:03:04.2]} 18.
Bxg6 {[%clk 0:02:53.3]} 18... hxg6 {[%clk 0:03:03.9]} 19. Nf3 {[%clk 0:02:50.2]}
19... Bd6 {[%clk 0:03:01.7]} 20. Bxd6 {[%clk 0:02:41.2]} 20... Nxd6 {[%clk
0:03:02.3]} 21. Ne5 {[%clk 0:02:43.1]} 21... Nc4 {[%clk 0:02:47.3]} 22. Nd3
{[%clk 0:02:35.6]} 22... Qc7 {[%clk 0:02:46.3]} 23. b4 {[%clk 0:02:32.2]} 23...
Rac8 {[%clk 0:02:39.9]} 24. Nc5 {[%clk 0:02:27]} 24... Rfe8 {[%clk 0:02:32.3]}
25. Qd3 {[%clk 0:02:13]} 25... Qc6 {[%clk 0:02:27.2]} 26. f4 {[%clk 0:02:01.9]}
26... Nd6 {[%clk 0:02:11.6]} 27. Rac1 {[%clk 0:01:57]} 27... Rc7 {[%clk
0:01:59.9]} 28. g3 {[%clk 0:01:56.7]} 28... Rce7 {[%clk 0:01:56.9]} 29. Kg2
{[%clk 0:01:57.1]} 29... Qb5 {[%clk 0:01:51.3]} 30. Qf3 {[%clk 0:01:51.2]} 30...
Qc4 {[%clk 0:01:43.4]} 31. h4 {[%clk 0:01:45.2]} 31... f5 {[%clk 0:01:41.9]} 32.
Qe2 {[%clk 0:01:20.1]} 32... Kf7 {[%clk 0:01:33.5]} 33. Kf3 {[%clk 0:01:13.7]}
33... Ne4 {[%clk 0:01:28.1]} 34. Qxc4 {[%clk 0:01:04]} 34... Nd2+ {[%clk
0:01:28.8]} 35. Kf2 {[%clk 0:01:04]} 35... Nxc4 {[%clk 0:01:30.7]} 36. Nd3
{[%clk 0:01:04.1]} 36... Rc7 {[%clk 0:01:25]} 37. Kg2 {[%clk 0:01:02.4]} 37...
Kf6 {[%clk 0:01:22.5]} 38. Kf2 {[%clk 0:01:03.3]} 38... Rc6 {[%clk 0:01:15.9]}
39. Nc5 {[%clk 0:01:04.3]} 39... Rc7 {[%clk 0:01:13.5]} 40. Re2 {[%clk
0:01:05.5]} 40... Nd6 {[%clk 0:01:12.1]} 41. Kg2 {[%clk 0:01:01]} 41... Ne4
{[%clk 0:00:54.8]} 42. Rb2 {[%clk 0:01:01.6]} 42... Ree7 {[%clk 0:00:52.1]} 43.
Kh2 {[%clk 0:00:58.1]} 43... Rc6 {[%clk 0:00:50.4]} 44. Kg2 {[%clk 0:00:58.7]}
44... Rc8 {[%clk 0:00:45.7]} 45. Re2 {[%clk 0:00:59.5]} 45... Rc6 {[%clk
0:00:44.4]} 46. Rcc2 {[%clk 0:01:00.1]} 46... Rec7 {[%clk 0:00:44.1]} 47. Rc1
{[%clk 0:01:00.7]} 47... Rd6 {[%clk 0:00:42.5]} 48. Rec2 {[%clk 0:00:58.9]}
48... Rdc6 {[%clk 0:00:43.5]} 49. Kf3 {[%clk 0:00:59.3]} 49... Rd6 {[%clk
0:00:44.6]} 50. Kg2 {[%clk 0:00:59.9]} 50... Rdc6 {[%clk 0:00:45.6]} 51. Rb2
{[%clk 0:00:59.5]} 51... Rd6 {[%clk 0:00:45.9]} 52. Rbc2 {[%clk 0:00:51.8]}
52... Rd8 {[%clk 0:00:45.9]} 53. Rb2 {[%clk 0:00:53.1]} 53... Rdc8 {[%clk
0:00:47]} 54. Rbc2 {[%clk 0:00:54.3]} 54... Ke7 {[%clk 0:00:47.1]} 55. Rb2
{[%clk 0:00:55.7]} 55... Kd6 {[%clk 0:00:48.2]} 56. Rbc2 {[%clk 0:00:57.1]}
56... Re8 {[%clk 0:00:47.7]} 57. Ra2 {[%clk 0:00:57.9]} 57... Kc6 {[%clk
0:00:48.7]} 58. Rb2 {[%clk 0:00:57.2]} 58... Kb5 {[%clk 0:00:49.2]} 59. Ra2
{[%clk 0:00:57.3]} 59... Kc6 {[%clk 0:00:49.4]} 60. Rac2 {[%clk 0:00:58.6]}
60... Kb5 {[%clk 0:00:45.5]} 61. Ra2 {[%clk 0:00:59.5]} 61... Ree7 {[%clk
0:00:45.9]} 62. Rb2 {[%clk 0:01:00]} 62... Rc6 {[%clk 0:00:44.2]} 63. Rbc2
{[%clk 0:01:01.3]} 63... Rcc7 {[%clk 0:00:42.5]} 64. Rb2 {[%clk 0:01:01.9]}
64... Rc6 {[%clk 0:00:39.2]} 65. Rbc2 {[%clk 0:01:03]} 65... Rcc7 {[%clk
0:00:39.7]} 66. Nd3 {[%clk 0:01:03.8]} 66... Kc6 {[%clk 0:00:35.8]} 67. Ne5+
{[%clk 0:01:04.4]} 67... Kd6 {[%clk 0:00:36.1]} 68. Nxg6 {[%clk 0:00:51.9]}
68... Re8 {[%clk 0:00:37.3]} 69. Ne5 {[%clk 0:00:53.3]} 69... Rec8 {[%clk
0:00:38.5]} 70. c4 {[%clk 0:00:54.5]} 70... dxc4 {[%clk 0:00:38.2]} 71. Rxc4
{[%clk 0:00:54.9]} 71... Rxc4 {[%clk 0:00:37.7]} 72. Nxc4+ {[%clk 0:00:53.3]}
72... Ke7 {[%clk 0:00:35.7]} 73. Rc2 {[%clk 0:00:54.7]} 73... Rd8 {[%clk
0:00:24.5]} 74. Ne5 {[%clk 0:00:47.8]} 74... Rxd4 {[%clk 0:00:16.7]} 75. Rc7+
{[%clk 0:00:48.9]} 75... Ke8 {[%clk 0:00:15.1]} 76. Rxb7 {[%clk 0:00:29.9]}
76... Rd2+ {[%clk 0:00:16.3]} 77. Kf3 {[%clk 0:00:28.7]} 77... Rf2+ {[%clk
0:00:16.7]} 78. Ke3 {[%clk 0:00:29.8]} 78... Rg2 {[%clk 0:00:18.2]} 79. Rb8+
{[%clk 0:00:23.3]} 79... Ke7 {[%clk 0:00:18.8]} 80. Rb7+ {[%clk 0:00:24.8]}
80... Kd6 {[%clk 0:00:20.2]} 81. Rd7# {[%clk 0:00:24.3]} 1-0